Cogmind - Beta 16.1 @@@ ROGUE MODE // 2026.02.22 @ 22:55:27 Player: FAYE Result: Destroyed by H-61 Shepherd with Heavy Assault Cannon Performance ------------- Evolutions (2) 1000 Regions Visited (3) 600 Robots Destroyed (27) 135 Value Destroyed (868) 868 Prototype IDs (2) 40 Alien Tech Used (0) 0 Bonus (0) 0 TOTAL SCORE: 2643 Bonus ------- None Cogmind --------- Core Integrity 0/550 Matter 202/300 Energy 100/100 System Corruption 0% Temperature Cool (0) Movement Core (200) Ox3 Location -8/Materials Parts ------- > --- POWER (2) -------- (None) > --- PROPULSION (3) --- (None) > --- UTILITY (3) ------ Improved Heat Sink Visual Processing Unit Advanced Targeting Computer > --- WEAPON (3) ------- Assault Cannon Great Maul > --- INVENTORY (5) ---- Heavy Ion Cannon Peak State ------------ > --- POWER ------------ Light Nuclear Core Light Nuclear Core > --- PROPULSION ------- Armored Treads Armored Treads > --- UTILITY ---------- Improved Heat Sink Visual Processing Unit Advanced Targeting Computer > --- WEAPON ----------- Light Assault Rifle Assault Cannon Great Maul > --- INVENTORY -------- Flight Unit Flight Unit Heavy Ion Cannon [Rating: 27] Favorites ----------- Power Ion Engine Engine Ion Engine Power Core Light Nuclear Core Propulsion Light Treads Treads Light Treads Leg Aluminum Leg Hover Unit Hover Unit Flight Unit Flight Unit Utility Visual Processing Unit Device System Restoration Module Storage Small Storage Unit Processor Visual Processing Unit Protection Improved Light Armor Plating Weapon Beam Cannon Energy Gun Pulse Rifle Energy Cannon Beam Cannon Ballistic Gun Assault Rifle Ballistic Cannon Assault Cannon Impact Weapon Great Maul Slashing Weapon Katana Build | -11 -10 -9 -8 ------- Run | Yrd Mat Mat Mat Slots Evolved 4 | . . 2 2 Power 1 | . . 1 . Propulsion 1 | . . 1 . Utility 1 | . . . 1 Weapon 1 | . . . 1 Parts Attached 48 | 6 9 12 21 Power 10 | 1 1 3 5 Engine 7 | 1 1 2 3 Core 3 | . . 1 2 Reactor . | . . . . Propulsion 15 | 2 2 5 6 Treads 4 | 2 . . 2 Leg 2 | . . 2 . Wheel . | . . . . Hover 2 | . 1 1 . Flight 7 | . 1 2 4 Utility 10 | 1 4 1 4 Device 2 | . . . 2 Storage 4 | 1 3 . . Processor 3 | . 1 . 2 Hackware . | . . . . Protection 1 | . . 1 . Artifact . | . . . . Weapon 13 | 2 2 3 6 Energy Gun 3 | . . 2 1 Energy Cannon 4 | . 2 . 2 Ballistic Gun 3 | 2 . . 1 Ballistic Cannon 1 | . . . 1 Launcher . | . . . . Special Weapon . | . . . . Impact Weapon 1 | . . . 1 Slashing Weapon 1 | . . 1 . Piercing Weapon . | . . . . Special Melee Weapon . | . . . . Unidentified Prototypes . | . . . . Parts Lost 18 | . . 3 15 Power 7 | . . . 7 Propulsion 6 | . . 2 4 Utility 1 | . . . 1 Weapon 4 | . . 1 3 Highest Loss Streak 7 | . . 2 7 To Critical Strikes . | . . . . Average Backups 3 | . 2 5 2 Power . | . . 1 . Propulsion . | . . . . Utility 1 | . . 2 . Weapon . | . . 1 1 Tool/Special . | . . . . Unused Backups 3 | . . 2 1 Power . | . . . . Propulsion 1 | . . . 1 Utility 2 | . . 2 . Weapon . | . . . . Tool/Special . | . . . . Average Slot Usage (%) 82 | . 92 81 75 Engine 12 | . 14 13 8 Core 2 | . . 3 2 Treads 9 | . 17 8 5 Leg 1 | . . 4 . Hover 2 | . 2 5 . Flight 5 | . 7 . 10 Device 2 | . . . 8 Storage 5 | . 14 5 . Processor 11 | . 8 11 13 Protection 2 | . . 5 1 Energy Gun 2 | . . 5 2 Energy Cannon 14 | . 20 16 8 Ballistic Gun 2 | . 6 . 3 Ballistic Cannon 1 | . . . 3 Impact Weapon 1 | . . . 3 Slashing Weapon 1 | . . . 2 Peak Build Rating 27 | 6 8 15 27 Average Rating 12 | 3 7 11 20 On Entrance 6 | . 6 8 13 Avg Prop Armor Cover (%) 6 | . 7 4 . Naked Turns . | . . . . Heaviest Build 27 | 14 16 21 27 Greatest Support 40 | 40 40 40 40 Greatest Overweight (x) 6 | . 3 6 6 Average Overweight (x) 1 | . . 1 1 Largest Inventory Capacity 25 | 8 25 8 8 Average Capacity 6 | 7 8 6 5 Most Carried 8 | 3 7 8 5 Average Carried 3 | . 2 5 2 Final Capacity 8 | 8 8 5 5 Final Carried 6 | . 6 2 1 Class Distribution -------------------- 50% | Mutant 38% | Scavenger-Mutant 6% | Scavenger-Skirmisher 3% | Skirmisher Dominant Class ---------------- Mutant | -10/Materials Scavenger-Mutant | -9/Materials Scavenger-Mutant | -8/Materials Resources | -11 -10 -9 -8 ----------- Run | Yrd Mat Mat Mat Matter Collected 902 | 246 56 256 344 Remotely . | . . . . Salvage Created 896 | . 42 430 424 Parts 49 | . 4 29 16 Haulers Intercepted . | . . . . Recyclers Shooed . | . . . . Parts Field Recycled . | . . . . Retrieved Matter . | . . . . Parts Self-Destructed . | . . . . Prevented . | . . . . Parts Restored . | . . . . Kills | -11 -10 -9 -8 ------- Run | Yrd Mat Mat Mat Combat Hostiles Destroyed 22 | . . 12 10 Melee 3 | . . . 3 Guns 6 | . . 6 . Cannons 13 | . . 6 7 Classes Destroyed 7 | . 1 5 1 Operator 1 | . . 1 . Watcher 4 | . 2 1 1 Swarmer 6 | . . 4 2 Grunt 10 | . . 6 4 Duelist 2 | . . 1 1 Sentry 3 | . . 1 2 Hunter 1 | . . . 1 Best Kill Streak 5 | . 2 5 2 Combat Bots Only 3 | . . 3 2 Max Kills in Single Turn 1 | . 1 1 1 Gunslinging . | . . . . Exploded . | . . . . Melee 1 | . . . 1 Uniques/NPCs Destroyed . | . . . . Combat | -11 -10 -9 -8 -------- Run | Yrd Mat Mat Mat Hostile Shots Fired 249 | . . 110 139 Missed 50 | . . 14 36 Hits 199 | . . 96 103 Melee 7 | . . 3 4 Projectile 192 | . . 93 99 Critical Strikes 6 | . . . 6 Damage Taken 3131 | . . 1105 2026 Core 820 | . . 240 580 Absorbed by Shields . | . . . . Core Remaining (%) 80 | 100 100 40 . Volleys Fired 107 | . 8 45 54 Largest 3 | . 2 2 3 Hottest 185 | . 120 126 185 Shots Fired 199 | . 16 79 104 Gun 77 | . 4 37 36 Cannon 122 | . 12 42 68 Launcher . | . . . . Special . | . . . . Kinetic 62 | . 4 . 58 Thermal 129 | . 12 79 38 Explosive . | . . . . Electromagnetic 8 | . . . 8 Robot Hit Streak 21 | . 1 6 21 Robot Miss Streak 5 | . 5 5 2 Penetration Max . | . . . . Secondary Targets 2 | . . 2 . Max Gunslinging Chain 1 | . . 1 . Shots Hit Robots 136 | . 4 43 89 Core Hits 44 | . 4 19 21 Critical Kills . | . . . . Critical Parts Destroyed . | . . . . Critical Strikes 3 | . . 1 2 Burn 1 | . . 1 . Blast 1 | . . . 1 Sever 1 | . . . 1 Melee Attacks 13 | . . . 13 Impact . | . . . . Slashing 13 | . . . 13 Piercing . | . . . . Sneak Attacks . | . . . . Combat Hostiles . | . . . . Follow-up Attacks . | . . . . Damage Inflicted 2631 | . 75 783 1773 Guns 720 | . 21 447 252 Cannons 1663 | . 54 336 1273 Explosions . | . . . . Melee 248 | . . . 248 Ramming . | . . . . Kinetic 866 | . 21 . 845 Thermal 1463 | . 54 783 626 Explosive . | . . . . Electromagnetic 54 | . . . 54 Impact . | . . . . Slashing 248 | . . . 248 Piercing . | . . . . Highest Corruption . | . . . . Average Corruption . | . . . . Corruption Purged . | . . . . Corruption Blocked . | . . . . Overload Shots . | . . . . Overflow Damage 56 | . . 5 51 Projectiles 46 | . . 5 41 Explosions . | . . . . Melee 10 | . . . 10 Knockbacks 3 | . . . 3 Impact . | . . . . Kinetic 3 | . . . 3 Secondary . | . . . . Self-Inflicted Damage . | . . . . Shots . | . . . . Rammed . | . . . . Targets Rammed . | . . . . Kicked . | . . . . Crushed . | . . . . Highest Temperature 510 | . 141 506 510 Average Temperature 170 | . 66 184 168 Received Heat Transfer 879 | . . 267 612 Effects 28 | . . 17 11 Shutdowns 10 | . . 7 3 Energy Bleed 1 | . . 1 . Interference 4 | . . 2 2 Matter Decay 1 | . . 1 . Short Circuit 1 | . . 1 . Damage (minor) 2 | . . 2 . Damage (major) 7 | . . 2 5 Damage (core) 2 | . . 1 1 Siege Activations . | . . . . Martial Activations . | . . . . Shielding Activations . | . . . . Robots Disrupted . | . . . . Combat Hostiles . | . . . . Robots Corrupted . | . . . . Combat Hostiles . | . . . . Parts Fried . | . . . . Impact Corruptions . | . . . . Robots Melted . | . . . . Combat Hostiles . | . . . . Parts Melted 4 | . . 2 2 Heat Transferred 2812 | . 111 1739 962 Parts Sabotaged . | . . . . Parts Stolen . | . . . . Parts Stripped . | . . . . Power Chain Reactions . | . . . . Alert | -11 -10 -9 -8 ------- Run | Yrd Mat Mat Mat Maximum Alert Level . | . . . . Low Security (%) 100 | 100 100 100 100 Level 1 . | . . . . Level 2 . | . . . . Level 3 . | . . . . Level 4 . | . . . . Level 5 . | . . . . High Security . | . . . . Max Security . | . . . . Peak Influence 164 | . 13 164 102 Initial 18 | . . . 18 Average 34 | . . 55 39 Influence Increases 798 | . 27 429 342 Destroy 0b10 Robot/C 440 | . . 240 200 Destroy 0b10 Robot/NC 25 | . 10 10 5 Destroy Leader 98 | . 4 42 52 Successful Hack 25 | . 13 . 12 Disable Machine 45 | . . 45 . Destroy Structure 15 | . . 2 13 Lose Combat Pursuer 150 | . . 90 60 Influence Decreases 798 | . 27 385 386 Entered New Map 26 | . . . 26 Time Decay 521 | . 27 215 279 Lost Part 111 | . . 30 81 Purge Threat 140 | . . 140 . Squads Dispatched 5 | . . . 5 Investigation 3 | . . . 3 Extermination . | . . . . Reinforcement 2 | . . . 2 Assault . | . . . . Garrison . | . . . . Intercept . | . . . . Searches Triggered . | . . . . Construction Impeded . | . . . . Haulers Reinforced . | . . . . Active Scanning Responses . | . . . . Cargo Convoy Interrupts . | . . . . Stealth | -11 -10 -9 -8 --------- Run | Yrd Mat Mat Mat Distress Signals 4 | . . 3 1 Communications Jammed . | . . . . Distress Signals . | . . . . Times Spotted 51 | . 4 25 22 Peak Tracking Total 6 | . 2 6 4 Tactical Retreats 9 | . . 5 4 Traps | -11 -10 -9 -8 ------- Run | Yrd Mat Mat Mat Traps Triggered 4 | . 2 1 1 Indirectly . | . . . . Trap Hack Attempts . | . . . . Triggered . | . . . . Disarmed . | . . . . Reprogrammed . | . . . . Reused . | . . . . Traps Extracted . | . . . . Installed . | . . . . Triggered . | . . . . Machines | -11 -10 -9 -8 ---------- Run | Yrd Mat Mat Mat Machines Disabled 3 | . . 3 . Max in Single Turn 1 | . . 1 . Garrison Access 1 | . . . 1 Machines Repaired . | . . . . Machines Dismantled . | . . . . Machines Sabotaged . | . . . . Overloaded Fab Kills . | . . . . Hacking | -11 -10 -9 -8 --------- Run | Yrd Mat Mat Mat Machines Accessed 8 | . 3 1 4 Terminals 3 | . 1 1 1 Fabricators . | . . . . Repair Stations 1 | . 1 . . Recycling Units 2 | . 1 . 1 Scanalyzers 1 | . . . 1 Garrison Access 1 | . . . 1 Total Hacks 28 | . 9 6 13 Successful 18 | . 5 3 10 Failed 10 | . 4 3 3 Catastrophic 2 | . . . 2 Database Lockouts . | . . . . Manual . | . . . . Terminals 14 | . 4 6 4 Fabricators . | . . . . Repair Stations 2 | . 2 . . Recycling Units 8 | . 3 . 5 Scanalyzers 2 | . . . 2 Garrison Access 2 | . . . 2 Terminal Hacks 9 | . 2 3 4 Record 4 | . . . 4 Prototype ID Bank 1 | . 1 . . Alert Level 1 | . . 1 . Unreport Threat 1 | . . 1 . Recall Reinforcements 1 | . 1 . . Registered Components 1 | . . 1 . Fabricator Hacks . | . . . . Repair Station Hacks 1 | . 1 . . Scan Component 1 | . 1 . . Recycling Unit Hacks 6 | . 2 . 4 Recycle Component 2 | . . . 2 Process 1 | . . . 1 Report Inventory 1 | . 1 . . Retrieve Components 2 | . 1 . 1 Scanalyzer 1 | . . . 1 Retrieve Study 1 | . . . 1 Garrison Access Hacks 1 | . . . 1 Seal Access 1 | . . . 1 Unauthorized Hacks . | . . . . Terminals . | . . . . Fabricators . | . . . . Repair Stations . | . . . . Recycling Units . | . . . . Scanalyzers . | . . . . Garrison Access . | . . . . Data Cores Recovered . | . . . . Used . | . . . . Hacking Detections 5 | . 1 . 4 Full Trace Events 2 | . . . 2 Feedback Events . | . . . . Feedback Blocked . | . . . . Robot Schematics Acquired . | . . . . Robots Built . | . . . . Authchips . | . . . . Time . | . . . . Total Robot Build Rating . | . . . . Part Schematics Acquired . | . . . . Parts Built . | . . . . Authchips . | . . . . Time . | . . . . Total Part Build Rating . | . . . . Part Studies Acquired 1 | . . . 1 Parts Repaired . | . . . . Time . | . . . . Parts Recycled 2 | . . . 2 Recycled Matter 100 | . . . 100 Retrieved Matter . | . . . . Retrieved Components 6 | . 6 . . Parts Scanalyzed . | . . . . Part Schematics Acquired . | . . . . Parts Damaged . | . . . . Bothacking | -11 -10 -9 -8 ------------ Run | Yrd Mat Mat Mat Used RIF Installer . | . . . . Robots Hacked . | . . . . Non-combat . | . . . . Combat . | . . . . Robot Hacks Applied . | . . . . Relay Couplers Released . | . . . . Fabnet Peak Effective % . | . . . . Robots Rewired . | . . . . Allies Hacked . | . . . . Hacks Repelled . | . . . . Allies | -11 -10 -9 -8 -------- Run | Yrd Mat Mat Mat Total Allies . | . . . . Largest Group . | . . . . Highest-Rated Group . | . . . . Highest-Rated Ally . | . . . . Total Orders . | . . . . Ally Attacks . | . . . . Total Damage . | . . . . Kills . | . . . . Allies Corrupted . | . . . . Allies Melted . | . . . . Intel | -11 -10 -9 -8 ------- Run | Yrd Mat Mat Mat Active Infowar (turns) 1765 | . 312 789 664 Optics 1765 | . 312 789 664 Robot Analysis Total . | . . . . Derelict Logs Recovered . | . . . . Drone Launches . | . . . . Drone Recoveries . | . . . . Exploration | -11 -10 -9 -8 ------------- Run | Yrd Mat Mat Mat Turns Passed 2038 | 84 501 789 664 Spaces Moved 828 | 59 234 280 255 Core 114 | 23 . 49 42 Treads 402 | 36 152 142 72 Legs 19 | . . 19 . Wheels . | . . . . Hover 108 | . 42 66 . Flight 185 | . 40 4 141 Fastest Speed 50 | 50 160 117 50 Average Speed 177 | 117 190 195 159 Slowest Speed 360 | 160 300 360 360 Overloaded Moves . | . . . . Propulsion Burnouts . | . . . . Robots Hopped . | . . . . Potential Cave-ins . | . . . . Cave-ins Triggered . | . . . . Exploration Rate (%) 24 | 4 39 26 29 Regions Visited 3 Branch Regions . Pre-discovered Areas . | . . . . Known Exits Taken . | . . . . Unknown Exits Taken 3 | 1 1 1 . Scrap Searched . | . . . . Spaces Dug . | . . . . Terrain Destroyed 12 | . . . 12 Melee . | . . . . Projectile 12 | . . . 12 AOE . | . . . . Terrain Rammed . | . . . . Walls Destroyed . | . . . . Machines Disabled . | . . . . Actions | -11 -10 -9 -8 --------- Run | Yrd Mat Mat Mat Total 1184 | 74 271 441 398 Wait 102 | 4 4 73 21 Move 825 | 58 233 279 255 Hop . | . . . . Pick Up 49 | 6 11 12 20 Fast Attach 4 | . . 2 2 Attach 31 | 6 7 5 13 Detach 3 | . 2 . 1 Swap 31 | . 6 13 12 Drop 19 | . . 12 7 Fire 107 | . 8 45 54 Melee 13 | . . . 13 Ram . | . . . . Kick . | . . . . Crush . | . . . . Escape Stasis . | . . . . Rewire . | . . . . Trap . | . . . . Miscellaneous . | . . . . Route ------- -11/Scrapyard -10/Materials -9/Materials -8/Materials History --------- Turn | Location | Event 10 | -11/Scrapyard | Discovered new exit (range 16) 85 | -11/Scrapyard | Entered Materials 314 | -10/Materials | Build established: Mutant 556 | -10/Materials | Discovered new exit (range 14) 586 | -10/Materials | Entered another Materials area 586 | -9/Materials | Evolved 2 slots: Power x1, Propulsion x1 1268 | -9/Materials | Build established: Scavenger-Mutant 1300 | -9/Materials | Discovered new exit (range 11) 1346 | -9/Materials | Core integrity fell below 50% 1375 | -9/Materials | Entered another Materials area 1375 | -8/Materials | Evolved 2 slots: Utility x1, Weapon x1 1485 | -8/Materials | Lost 7 parts (2p2n1u2w) 1653 | -8/Materials | Core integrity fell below 50% 1937 | -8/Materials | Core integrity fell below 20% 2039 | -8/Materials | Destroyed by H-61 Shepherd with Heavy Assault Cannon Last Messages --------------- 02025_ Lgt. Assault Rifle destroyed. 02025_ Critical hit (Blast). 02025_ Knocked back. 02026_ U-05 Engineer lays Concrete. 02027_ U-05 Engineer builds a Wall. 02028_ Acquired 30 matter. 02028_ U-05 Engineer builds a Wall. 02028_ U-05 Engineer lays Concrete. 02032_ U-05 Engineer builds a Wall. 02032_ U-05 Engineer lays Concrete. 02034_ U-05 Engineer builds a Wall. 02034_ U-05 Engineer lays Concrete. 02035_ U-05 Engineer builds a Wall. 02035_ U-05 Engineer lays Concrete. 02036_ K-01 Serf collects debris. 02036_ U-05 Engineer lays Concrete. 02037_ U-05 Engineer builds a Wall. 02037_ G-47 Trooper knocked back. 02039_ Lgt. Nuclear Core destroyed. 02039_ Critical hit (Blast). Map ----- +----------------------------------------------------+ | ?????????????????????????????????????????????????? | | ?????????????????????????????????????????????????? | | ?????????????????????????????????????????????????? | | ?????????????????????????????????????????????????? | | ?????????????????????????????????????????????????? | | ?????????????????????????????????????????????????? | | ?????????????????????????????????????????????????? | | ?????????????????????????????????????????????????? | | ?????????????????????????####????????????????????? | | ????????????????????????? #???????????????????? | | ????????????????????????? #???????????????????? | | ????????????????????????? #???????????????????? | | ?????????????????????????# #???????????????????? | | ?????????????????????????# #???????????????????? | | ?????????????????????????# #???????????????????? | | ?????????????????????????# +???????????????????? | | ?????????????????????????# #???????????????????? | | ?????????????????????????# #???????????????????? | | ????????????###+????????## ##??????????????????? | | ????????????# ####### ############+##????? | | ????????????# % % % ###??? | | ????????????? % ???? | | ??????????????????? g #????? | | ????????????????????????# Hg%#???####### ###### | | ???????????????????????###;/#####???????# # | | ???????????????????????# @ #???????# #% | | ???????????????????????# ==! #???????# # [ | | ???????????????????????#% =!! #???????# # | | ???????????????????????# =!! #???????# %+% | | ???????????????????????# #???????# %[# | | ???????????????????????# #???????# # !! | | ???????????????????????# ######### # !!% | | ???????????????????????# + % + !!%[ | | ??????????????????????? uu # ###### | | ????????????????????### # ####### #####? | | ????????????????? ? =% | | ??????????????????# ^ ######### | | ??????????????????#!! " !]]#?# | | ??????????????????#! ]] #?# | | ??????????????????# ] #?# | | ??????????????????# ### | | ??????????????????# / =% | | ??????????????????# #"Y"### ###"Y"##T###### | | ???????????????????????????????#"""####????# | | ???????????????????????????????#####???????# | | ??????????????????????????????????????????## | | ????????????????????????????????################## | | ????????????????????????????????# #????? | | ????????????????????????????????# """"" ###### | | ????????????????????????????????# """"""""" + [ | +----------------------------------------------------+ Best States ------------- Heat Dissipation 45 Energy Generation 23 Energy Capacity 400 Matter Stores 300 Matter Capacity 300 Sight Range 18 Terrain Scan Density 10 Armor Coverage 150 Evasion (%) 50 Targeting Accuracy 8 Recoil Reduction 2 Item Schematics ----------------- None Robot Schematics ------------------ None Fabricated ------------ Nothing Repaired ---------- Nothing Studied --------- Hvy. Ion Cannon | -8/Materials | Hacked Alien Tech Used ----------------- None Achievements -------------- DATA ERROR: Steam Global Achievement% Everything Is Under Control Heavy Suspicion Item+ Organ Harvest Spot Them First There's More Where That Came From Throw Away The Key Well Done Challenges ------------ None Game ------ Seed BiocellBoltDirector Manual? 0 Play Time 00:26:41 Cumulative 4.0 hours Start 2026.02.22 @ 22:29:14 End 2026.02.22 @ 22:55:27 Sessions 1 Manual Loads 0 Difficulty Rogue Special Mode None Game No. 9 Rogue 9 Adventurer 0 Explorer 0 Win Type - Total 0 Types 0/0/0/0/0/0/0/0/0/0 Lore% 1 Gallery% 10 Achievement% 7 Wizard Run 0 Options --------- Layout 1 ASCII 0 Keyboard 0 Movement Mouse Keybinds 0 Fullscreen 1 Font 32/SmallcapsGlow Map View 50x35 Zoom Use 0% Tactical HUD 1 Map Filters NONE Filters NONE Steam 1 RUN: a9b73250-9544-4dc2-881f-bb3a7085a14b